bitfinex-derivatives/quotes_SOLF0:USTF0_20251006
["timestamp","ask_amount","ask_price","bid_price","bid_amount"]
[1759744341516,3.8554,233.35,233.3,7.49]
[1759744341720,1.22218061,233.38,233.3,7.49]
[1759744341921,3.94,233.37,233.3,7.49]
[1759744342618,7.7955,233.34,233.3,7.49]
[1759744342810,104.16,233.33,233.3,7.49]
[1759744343010,104.16,233.33,233.24,3.8569]
[1759744343011,104.16,233.33,233.27,3.60239676]
[1759744343210,67.6688,233.4,233.27,1.22218061]
[1759744343410,3.94,233.36,233.28,7.49]
[1759744343918,3.8557,233.33,233.27,1.22218061]
[1759744344114,104.46,233.32,233.28,7.49]
[1759744344317,108.4,233.32,233.28,7.49]
[1759744344623,3.94,233.31,233.28,7.49]
[1759744345017,104.46,233.32,233.26,7.49]
[1759744345713,3.8561,233.31,233.25,1.22218061]
[1759744345914,3.8561,233.31,233.26,7.49]
[1759744346118,3.8561,233.31,233.29,7.49]
[1759744346923,3.8561,233.31,233.28,1.22218061]
[1759744347130,104.46,233.32,233.28,1.22218061]
[1759744348028,112.2559,233.32,233.29,7.49]
[1759744350732,108.3159,233.32,233.29,7.49]
[1759744351240,108.3159,233.32,233.28,1.22218061]
[1759744351623,104.38,233.31,233.29,7.49]
[1759744353329,104.38,233.31,233.28,1.22218061]
[1759744353632,108.32,233.31,233.25,8.71218061]
[1759744354029,7.7962,233.3,233.26,7.49]
[1759744354630,7.7962,233.3,233.26,7.22]
[1759744355230,3.8562,233.3,233.26,7.22]
[1759744355735,3.8562,233.3,233.25,1.22218061]
[1759744356133,3.8562,233.3,233.26,7.22]
[1759744356329,108.236,233.31,233.25,1.22218061]
[1759744356530,112.186,233.31,233.25,1.22218061]
[1759744356735,112.186,233.31,233.25,8.44218061]
[1759744357232,3.8562,233.3,233.25,1.22218061]
[1759744357432,3.8562,233.3,233.26,7.22]
[1759744357633,3.8562,233.3,233.25,1.22218061]
[1759744357831,3.8562,233.3,233.26,7.22]
[1759744358030,108.33,233.31,233.26,7.22]
[1759744358231,104.38,233.31,233.29,7.22]
[1759744359437,104.38,233.31,233.28,1.22218061]
[1759744359839,104.38,233.31,233.29,7.22]
[1759744360238,104.38,233.31,233.28,1.22218061]
[1759744360937,104.38,233.31,233.29,7.22]
[1759744361438,104.38,233.31,233.28,1.22218061]
[1759744362038,104.38,233.31,233.28,5.07848061]
[1759744363038,104.38,233.31,233.29,7.22]
[1759744363740,104.38,233.31,233.28,5.07848061]
[1759744364439,104.38,233.31,233.29,7.22]
[1759744370137,108.32,233.31,233.29,7.45]
[1759744370340,104.38,233.31,233.29,11.3062]
[1759744374544,108.32,233.31,233.29,3.8562]
[1759744374744,108.32,233.31,233.3,1.22218061]
[1759744375542,3.94,233.37,233.31,7.45]
[1759744375739,104.14,233.39,233.35,1.22218061]
[1759744376244,3.94,233.38,233.35,1.22218061]
[1759744376448,104.14,233.39,233.35,1.22218061]
[1759744376847,3.94,233.38,233.35,1.22218061]
[1759744377545,104.14,233.39,233.35,1.22218061]
[1759744377744,3.94,233.38,233.35,1.22218061]
[1759744377946,104.14,233.39,233.35,1.22218061]
[1759744378146,3.94,233.38,233.35,1.22218061]
[1759744378348,104.14,233.39,233.35,1.22218061]
[1759744378547,3.94,233.38,233.35,1.22218061]
[1759744378747,104.14,233.39,233.35,1.22218061]
[1759744379249,3.94,233.38,233.35,1.22218061]
[1759744379744,104.14,233.39,233.33,5.07768061]
[1759744380246,3.94,233.38,233.34,3.8553]
[1759744380440,104.14,233.39,233.34,3.8553]
[1759744380646,3.94,233.38,233.34,3.8553]
[1759744381048,104.14,233.39,233.35,3.8552]
[1759744381250,108.08,233.39,233.36,7.45]
[1759744381450,108.08,233.39,233.3,4.80563011]
[1759744381451,104.14,233.39,233.37,8.67218061]
[1759744381654,104.14,233.39,233.38,7.45]
[1759744381844,3.8535,233.46,233.38,11.3047]
[1759744382044,104.12,233.45,233.39,1.22218061]
[1759744382347,3.94,233.43,233.37,1.22218061]
[1759744383751,3.8539,233.44,233.37,5.07698061]
[1759744384049,3.94,233.43,233.37,5.07698061]
[1759744384447,3.94,233.42,233.31,7.45]
[1759744384651,3.94,233.4,233.32,1.22218061]
[1759744384946,3.94,233.38,233.32,1.22218061]
[1759744385250,3.94,233.38,233.31,8.67218061]
[1759744385649,3.94,233.38,233.32,3.8557]
[1759744387651,3.8549,233.37,233.32,3.8557]
[1759744387853,3.94,233.35,233.27,8.67218061]
[1759744388050,3.94,233.33,233.25,1.22218061]
[1759744388551,7.7956,233.33,233.27,3.8565]
[1759744389950,104.12,233.33,233.3,11.3061]
[1759744390653,3.94,233.36,233.31,5.07798061]
[1759744390854,3.94,233.36,233.32,7.45]
[1759744391251,3.94,233.36,233.31,1.22218061]
[1759744391649,3.94,233.36,233.32,7.45]
[1759744392650,3.94,233.36,233.33,3.8556]
[1759744392845,3.94,233.36,233.28,4.80563011]
[1759744392846,104.12,233.38,233.34,1.22218061]
[1759744393050,77.47452607,233.5,233.37,1.22218061]
[1759744393051,3.94,233.44,233.37,1.22218061]
[1759744393261,69.6,233.44,233.37,1.22218061]
[1759744393459,3.94,233.43,233.39,3.8546]
[1759744394052,3.94,233.47,233.4,5.07648061]
[1759744394258,104.16,233.46,233.4,5.07648061]
[1759744396259,3.94,233.45,233.38,1.22218061]
[1759744398452,3.94,233.45,233.36,8.67218061]
[1759744398651,105.38218061,233.46,233.36,8.67218061]
[1759744398951,3.94,233.45,233.36,8.67218061]
[1759744399153,105.38218061,233.46,233.36,8.67218061]
[1759744399758,3.94,233.42,233.36,12.52728061]
[1759744400255,3.94,233.42,233.36,8.67218061]
[1759744400857,1.22218061,233.44,233.31,3.8558]
[1759744401151,3.94,233.41,233.31,11.3558]
[1759744401359,104.1,233.4,233.32,1.22218061]
[1759744401656,3.94,233.39,233.32,1.22218061]
[1759744403049,3.94,233.39,233.31,11.3558]
[1759744403857,3.94,233.39,233.32,3.8556]
[1759744404057,3.94,233.39,233.31,9.40945311]
[1759744404258,3.94,233.39,233.31,1.90945311]
[1759744404454,3.94,233.39,233.32,7.5]
[1759744404856,3.94,233.39,233.33,3.8555]
[1759744407856,3.94,233.39,233.35,3.8553]
[1759744408061,104.1,233.42,233.35,11.3553]
[1759744409257,104.1,233.42,233.36,3.855]
[1759744409458,108.04,233.43,233.35,7.5]
[1759744410661,3.94,233.42,233.38,11.3547]
[1759744411461,3.94,233.42,233.38,7.5]
[1759744413362,104.1,233.43,233.38,7.5]
[1759744413764,3.94,233.42,233.38,7.5]
[1759744415561,104.1,233.43,233.38,7.5]
[1759744415762,3.94,233.42,233.38,7.5]
[1759744415962,3.94,233.42,233.36,3.8549]
[1759744418263,3.94,233.42,233.37,3.8548]
[1759744418566,3.94,233.42,233.38,7.42]
[1759744418762,104.1,233.43,233.39,3.8546]
[1759744419265,104.1,233.43,233.4,7.42]
[1759744420768,108.04,233.43,233.4,7.42]
[1759744422067,108.04,233.43,233.4,11.2743]
[1759744422259,104.1,233.43,233.41,7.42]
[1759744423169,104.1,233.43,233.41,11.2741]
[1759744423669,3.94,233.42,233.38,11.2746]
[1759744424065,104.1,233.43,233.38,11.2746]
[1759744425467,3.94,233.42,233.38,11.2746]
[1759744425661,104.1,233.43,233.38,11.2746]
[1759744426268,3.94,233.42,233.38,11.2746]
[1759744426466,104.1,233.43,233.38,11.2746]
[1759744428168,3.94,233.42,233.38,11.2746]
[1759744428367,104.1,233.43,233.38,11.2746]
[1759744428968,3.94,233.42,233.38,11.2746]
[1759744429270,104.1,233.43,233.34,7.55]
[1759744429575,3.94,233.42,233.34,7.55]
[1759744430679,3.94,233.4,233.34,7.55]
[1759744431274,7.7945,233.4,233.34,11.4053]
[1759744431475,3.94,233.4,233.34,7.55]
[1759744432580,3.94,233.4,233.36,3.855]
[1759744432879,3.94,233.4,233.36,11.405]
[1759744433081,3.94,233.4,233.37,7.55]
[1759744433983,108.04,233.43,233.37,3.8548]
[1759744434477,108.04,233.43,233.36,7.55]
[1759744435282,3.94,233.43,233.36,7.55]
[1759744435585,7.794,233.43,233.36,7.55]
[1759744435782,32.094,233.43,233.36,7.55]
[1759744436180,7.794,233.43,233.36,7.55]
[1759744436483,31.234,233.43,233.36,11.405]
[1759744439186,3.8542,233.42,233.36,11.405]
[1759744443088,27.38,233.43,233.37,3.8548]
[1759744443385,27.38,233.43,233.38,7.55]
[1759744443590,27.38,233.43,233.37,3.8548]
[1759744443786,27.38,233.43,233.38,7.55]
[1759744443993,27.38,233.43,233.37,3.8548]
[1759744444187,27.38,233.43,233.38,7.55]
[1759744444592,27.38,233.43,233.37,3.8548]
[1759744444789,27.38,233.43,233.38,7.55]
[1759744445484,3.94,233.42,233.38,7.55]
[1759744445685,27.294,233.43,233.38,7.55]
[1759744446087,3.94,233.42,233.38,7.55]
[1759744446490,3.94,233.42,233.37,3.8548]
[1759744446793,27.294,233.43,233.38,7.55]
[1759744446994,3.94,233.42,233.38,7.55]
[1759744447289,27.294,233.43,233.38,7.55]
[1759744448092,3.94,233.42,233.38,7.55]
[1759744448294,3.94,233.42,233.37,3.8548]
[1759744448487,3.94,233.42,233.38,7.55]
[1759744449292,3.94,233.46,233.37,6.71508322]
[1759744449486,3.94,233.46,233.38,7.55]
[1759744450593,3.8537,233.45,233.38,11.4047]
[1759744451799,3.8537,233.45,233.39,3.8545]
[1759744454903,3.94,233.4,233.37,7.55]
[1759744455101,3.8542,233.42,233.36,7.55]
[1759744455297,3.94,233.43,233.39,3.8545]
[1759744455496,3.94,233.47,233.39,11.4045]
[1759744455692,1.07081134,233.48,233.39,11.4045]
[1759744455899,3.8539,233.44,233.39,11.15934713]
[1759744456099,3.94,233.43,233.39,11.15934713]
[1759744456697,3.8535,233.46,233.4,7.55]
[1759744456898,3.8535,233.46,233.42,7.55]
[1759744457303,3.8535,233.46,233.41,3.60934713]
[1759744457692,7.7935,233.46,233.42,7.55]
[1759744457896,7.7935,233.46,233.42,7.64]
[1759744458601,3.94,233.45,233.42,7.64]
[1759744459303,3.94,233.44,233.41,3.60934713]
[1759744459503,3.8537,233.45,233.4,3.60934713]
[1759744459691,3.8537,233.45,233.4,11.24934713]
[1759744459892,3.94,233.43,233.4,11.24934713]
[1759744460206,3.94,233.47,233.4,3.60934713]
[1759744460402,3.94,233.47,233.39,3.60934713]
[1759744461603,3.94,233.43,233.4,7.64]
[1759744464109,3.94,233.43,233.4,11.24934713]
[1759744465306,3.94,233.43,233.4,3.60934713]
[1759744465506,3.94,233.43,233.41,7.64]
[1759744472209,3.8539,233.44,233.4,3.60934713]
[1759744472812,3.94,233.46,233.4,3.60934713]
[1759744473014,3.94,233.46,233.41,3.60934713]
[1759744473714,3.94,233.46,233.42,7.64]
[1759744474016,3.8536,233.46,233.42,11.24934713]
[1759744474216,7.7936,233.46,233.43,7.64]
[1759744475018,7.7937,233.45,233.43,7.64]
[1759744477518,3.94,233.43,233.42,3.60934713]
[1759744477812,3.94,233.43,233.41,3.60934713]
[1759744478118,3.94,233.43,233.41,11.13934713]
[1759744478310,3.8539,233.44,233.41,11.13934713]
[1759744478511,3.94,233.42,233.41,3.60934713]
[1759744478709,1.0707839,233.45,233.4,3.60934713]
[1759744478911,3.94,233.45,233.39,3.60934713]
[1759744480821,7.7942,233.42,233.39,11.13934713]
[1759744481319,3.8533,233.47,233.4,4.80563011]
[1759744481621,3.8533,233.47,233.44,7.53]
[1759744482218,3.8533,233.47,233.43,3.60928134]
[1759744483021,8.86376704,233.49,233.43,3.60928134]
[1759744483217,1.07076704,233.48,233.44,3.60928134]
[1759744483517,1.07076704,233.48,233.45,7.53]
[1759744483722,7.793,233.49,233.44,3.60928134]
[1759744484126,7.793,233.49,233.46,7.53]
[1759744485222,3.94,233.48,233.46,7.53]
[1759744486426,3.853,233.49,233.46,7.53]
[1759744486827,7.793,233.49,233.46,7.53]
[1759744487016,3.94,233.48,233.46,7.53]
[1759744487326,3.853,233.49,233.46,7.53]
[1759744487725,3.853,233.49,233.45,3.60928134]
[1759744487923,5.01068137,233.51,233.46,7.73]
[1759744488223,3.69144662,233.55,233.5,3.60928134]
[1759744488422,7.63144662,233.55,233.51,7.73]
[1759744488621,3.8522,233.54,233.51,7.73]
[1759744490417,3.94,233.56,233.5,7.73]
[1759744490722,104.02,233.56,233.5,7.73]
[1759744490925,104.02,233.56,233.52,7.73]
[1759744491327,107.8719,233.56,233.51,1.2214535]
[1759744491527,111.8119,233.56,233.52,7.73]
[1759744492228,107.8719,233.56,233.51,1.2214535]
[1759744492625,111.8119,233.56,233.51,1.2214535]
[1759744493327,111.8119,233.56,233.52,7.73]
[1759744494230,3.94,233.55,233.52,7.73]
[1759744495931,3.94,233.55,233.49,1.2214535]
[1759744496132,3.94,233.55,233.5,7.73]
[1759744496430,3.94,233.55,233.49,1.2214535]
[1759744496626,3.94,233.55,233.5,7.73]
[1759744496831,3.94,233.55,233.49,1.2214535]
[1759744497132,3.94,233.55,233.5,7.73]
[1759744497737,7.7921,233.55,233.5,7.73]
[1759744498434,7.7921,233.55,233.49,1.2214535]
[1759744498630,7.7921,233.55,233.5,7.73]
[1759744498835,7.7921,233.55,233.49,1.2214535]
[1759744499436,7.7921,233.55,233.5,7.73]
[1759744499939,7.7921,233.55,233.49,1.2214535]
[1759744500234,3.8521,233.55,233.49,7.73]
[1759744500431,7.7921,233.55,233.5,1.2214535]
[1759744500935,7.7921,233.55,233.51,7.73]
[1759744501536,3.94,233.54,233.5,1.2214535]
[1759744502036,3.94,233.54,233.51,7.73]
[1759744502342,104.02,233.56,233.51,7.73]
[1759744502532,104.02,233.56,233.5,8.9514535]
[1759744503542,107.8719,233.56,233.5,8.9514535]
[1759744506743,3.8521,233.55,233.5,1.2214535]
[1759744506941,7.7921,233.55,233.51,7.73]
[1759744507245,3.8521,233.55,233.51,7.73]
[1759744507443,7.7921,233.55,233.51,7.73]
[1759744507633,3.8521,233.55,233.51,7.73]
[1759744507840,3.94,233.54,233.5,1.2214535]
[1759744508047,107.96,233.56,233.51,7.73]
[1759744508238,104.02,233.56,233.52,1.2214535]
[1759744508442,104.02,233.56,233.53,7.73]
[1759744508945,107.96,233.56,233.53,7.73]
[1759744509143,3.94,233.56,233.53,7.73]
[1759744509745,3.94,233.56,233.52,1.2214535]
[1759744509945,3.94,233.56,233.53,7.73]
[1759744510347,3.8515,233.58,233.53,7.73]
[1759744510543,103.98,233.59,233.53,7.73]
[1759744510940,103.98,233.59,233.55,1.2214535]
[1759744511548,103.98,233.59,233.56,7.73]
[1759744511746,107.92,233.59,233.56,7.73]
[1759744511942,103.98,233.59,233.54,1.2214535]
[1759744512250,3.94,233.58,233.55,7.73]
[1759744513651,3.8518,233.57,233.55,7.73]
[1759744514351,3.94,233.58,233.55,7.73]
[1759744515350,3.94,233.58,233.53,1.2214535]
[1759744515746,3.94,233.58,233.54,7.73]
[1759744515951,3.94,233.58,233.53,1.2214535]
[1759744516256,3.94,233.58,233.54,7.73]
[1759744516555,3.94,233.58,233.53,1.2214535]
[1759744517055,3.94,233.58,233.54,7.73]
[1759744517247,3.94,233.58,233.53,1.2214535]
[1759744517452,3.94,233.58,233.54,7.73]
[1759744517853,3.94,233.58,233.54,7.52]
[1759744518353,3.94,233.58,233.53,1.2214535]
[1759744518749,3.92,233.56,233.5,3.60928134]
[1759744518948,3.92,233.56,233.5,7.52]
[1759744519554,3.92,233.56,233.49,4.83073484]
[1759744519555,3.8516,233.57,233.52,7.52]
[1759744520261,3.92,233.56,233.52,7.52]
[1759744520561,3.8516,233.57,233.52,7.52]
[1759744520956,3.92,233.56,233.52,7.52]
[1759744521450,107.8313,233.59,233.52,7.52]
[1759744521650,107.8313,233.59,233.53,1.2214535]
[1759744521857,107.8313,233.59,233.53,8.7414535]
[1759744522859,3.92,233.58,233.53,8.7414535]
[1759744523063,103.98,233.59,233.53,8.7414535]
[1759744523258,3.92,233.58,233.53,8.7414535]
[1759744523663,103.98,233.59,233.53,8.7414535]
[1759744524170,3.92,233.58,233.53,8.7414535]
[1759744524361,3.92,233.58,233.51,1.2214535]
[1759744524659,3.8518,233.57,233.51,1.2214535]
[1759744525064,3.8518,233.57,233.5,11.12928134]
[1759744525265,3.8518,233.57,233.51,3.60928134]
[1759744526166,7.7719,233.56,233.52,7.52]
[1759744526466,3.92,233.55,233.52,7.52]
[1759744527153,3.92,233.55,233.51,3.60928134]
[1759744527355,3.92,233.55,233.49,3.8529]
[1759744527356,3.92,233.55,233.52,11.12928134]
[1759744527562,3.92,233.55,233.53,7.52]
[1759744529059,3.8519,233.56,233.53,7.52]
[1759744529267,7.7719,233.56,233.53,7.52]
[1759744531268,3.92,233.55,233.53,3.60928134]
[1759744531468,3.8519,233.56,233.53,11.12928134]
[1759744531663,3.92,233.55,233.53,11.12928134]
[1759744531970,3.92,233.54,233.52,3.60928134]
[1759744532268,3.92,233.58,233.52,7.52]
[1759744532464,3.92,233.58,233.54,3.60493562]
[1759744532769,103.98,233.59,233.54,11.12493562]
[1759744533167,3.92,233.58,233.54,11.12493562]
[1759744533663,3.92,233.57,233.54,11.12493562]
[1759744534367,3.92,233.57,233.55,7.5]
[1759744534867,107.91,233.59,233.55,11.10493562]
[1759744535272,3.93,233.58,233.55,11.10493562]
[1759744538471,7.7815,233.58,233.55,11.10493562]
[1759744538670,103.98,233.59,233.55,3.60493562]
[1759744538964,1.0702841,233.58,233.54,3.60493562]
[1759744539167,3.93,233.57,233.54,3.60493562]
[1759744539566,3.8519,233.56,233.54,3.60493562]
[1759744539760,7.7819,233.56,233.54,3.60493562]
[1759744541178,3.93,233.55,233.54,3.60493562]
[1759744541770,3.93,233.57,233.54,3.60493562]
[1759744542276,3.8519,233.56,233.54,3.60493562]
[1759744542470,3.93,233.55,233.54,3.60493562]
[1759744546677,0.85862008,233.58,233.54,7.92]
[1759744546873,3.93,233.69,233.57,7.5]
[1759744547072,4.59,233.7,233.64,11.10554927]
[1759744547267,3.85,233.67,233.63,3.60554927]
[1759744547676,4.59,233.66,233.62,3.60554927]
[1759744547885,3.85,233.67,233.61,3.60554927]
[1759744548180,4.58,233.67,233.63,7.54]
[1759744548479,4.58,233.7,233.63,7.54]
[1759744548674,3.85,233.68,233.63,7.54]
[1759744548880,4.58,233.67,233.63,7.54]
[1759744549370,4.58,233.67,233.62,3.59909585]
[1759744549771,4.58,233.67,233.64,7.54]
[1759744550378,4.58,233.67,233.62,3.59909585]
[1759744550574,4.58,233.67,233.63,7.54]
[1759744551879,4.58,233.67,233.62,3.59909585]
[1759744552082,4.58,233.67,233.63,7.54]
[1759744552678,4.58,233.67,233.62,3.59909585]
[1759744552980,3.85,233.68,233.63,7.54]
[1759744553281,4.58,233.7,233.63,7.54]
[1759744553680,3.8497,233.69,233.63,7.54]
[1759744553882,4.58,233.7,233.63,11.13909585]
[1759744554378,4.58,233.73,233.65,7.54]
[1759744554578,77.46,233.77,233.67,7.54]
[1759744554882,8.4291,233.73,233.67,7.54]
[1759744561793,3.8493,233.71,233.67,7.54]
[1759744562095,3.8493,233.71,233.65,7.54]
[1759744563390,3.8493,233.71,233.6,13.62237389]
[1759744563391,4.58,233.72,233.62,3.59909585]
[1759744563595,59.8748,233.73,233.61,11.13909585]
[1759744563795,4.58,233.72,233.61,11.13909585]
[1759744564197,4.58,233.72,233.62,7.54]
[1759744564598,3.8499,233.68,233.62,7.54]
[1759744565098,3.8495,233.7,233.62,7.54]
[1759744565299,4.58,233.72,233.62,7.54]
[1759744565999,3.8498,233.69,233.62,7.54]
[1759744566693,4.58,233.72,233.62,7.54]
[1759744566894,4.58,233.71,233.62,7.54]
[1759744567096,59.8791,233.71,233.62,7.54]
[1759744567300,4.58,233.7,233.62,7.54]
[1759744567496,3.8503,233.66,233.61,7.54]
[1759744567696,3.8503,233.66,233.6,8.56307071]
[1759744567902,3.8503,233.66,233.61,7.54]
[1759744568092,3.8497,233.69,233.6,8.56307071]
[1759744568399,4.58,233.7,233.61,7.54]
[1759744569498,4.56,233.7,233.61,7.54]
[1759744569699,3.8503,233.66,233.6,8.56307071]
[1759744570100,3.8503,233.66,233.61,7.54]
[1759744570506,3.8505,233.65,233.6,8.56307071]
[1759744570801,3.8505,233.65,233.61,7.54]
[1759744570998,3.8505,233.65,233.6,8.56307071]
[1759744571396,3.8505,233.65,233.61,7.54]
[1759744571800,3.8505,233.65,233.6,8.56307071]
[1759744572202,3.8505,233.65,233.61,7.54]
[1759744573801,3.8505,233.65,233.6,8.56307071]
[1759744574404,3.8505,233.65,233.61,7.54]
[1759744574807,59.8792,233.71,233.61,11.13909585]
[1759744575005,4.56,233.7,233.61,7.54]
[1759744575407,3.8501,233.67,233.61,11.13909585]
[1759744576405,3.8502,233.66,233.61,3.59909585]
[1759744577409,3.8502,233.66,233.62,7.54]
[1759744577611,3.8502,233.66,233.61,3.59909585]
[1759744577810,3.8502,233.66,233.62,7.21]
[1759744578107,4.57,233.72,233.63,7.21]
[1759744578806,4.57,233.72,233.64,7.21]
[1759744579710,3.8496,233.7,233.64,7.21]
[1759744581510,3.8498,233.69,233.64,7.21]
[1759744581808,3.8498,233.69,233.63,3.59909585]
[1759744582010,8.4198,233.69,233.63,10.80909585]
[1759744583606,3.8499,233.68,233.63,3.59909585]
[1759744584203,3.8499,233.68,233.64,7.21]
[1759744584404,3.8499,233.68,233.63,3.59909585]
[1759744585109,1.90620056,233.73,233.63,3.59909585]
[1759744585312,59.8396,233.87,233.69,5.50529641]
[1759744585606,4.57,233.82,233.73,7.21]
[1759744585810,3.8478,233.81,233.73,10.80909585]
[1759744586009,3.8478,233.81,233.74,3.59909585]
[1759744586214,59.8486,233.83,233.73,10.80909585]
[1759744586412,4.57,233.82,233.73,7.21]
[1759744587109,4.57,233.8,233.73,7.21]
[1759744587420,4.57,233.8,233.73,10.80909585]
[1759744587713,8.4183,233.78,233.73,10.80909585]
[1759744587910,1.21795648,233.81,233.69,4.80739903]
[1759744587911,4.57,233.8,233.72,3.59909585]
[1759744588115,3.8487,233.75,233.72,3.59909585]
[1759744588318,8.4187,233.75,233.72,3.59909585]
[1759744588614,8.4187,233.75,233.71,10.80909585]
[1759744589114,3.8487,233.75,233.72,7.21]
[1759744589305,3.8487,233.75,233.72,10.80909585]
[1759744589510,8.4187,233.75,233.72,10.80909585]
[1759744591309,4.57,233.75,233.73,3.59909585]
[1759744591915,4.57,233.75,233.72,10.80909585]
[1759744592115,3.8483,233.77,233.72,10.80909585]
[1759744592316,4.57,233.76,233.72,10.80909585]
[1759744594513,3.8483,233.77,233.73,7.64]
[1759744595015,8.4183,233.77,233.73,7.64]
[1759744595515,4.57,233.85,233.75,1.21795648]
[1759744595713,5.78795648,233.85,233.75,1.21795648]
[1759744595914,5.78795648,233.85,233.75,4.81705233]
[1759744596313,5.78795648,233.85,233.75,1.21795648]
[1759744596618,8.4178,233.81,233.75,1.21795648]
[1759744597119,8.4178,233.81,233.74,3.59909585]
[1759744597612,8.4178,233.81,233.75,3.59909585]
[1759744598422,4.57,233.78,233.72,3.59909585]
[1759744599722,8.4183,233.78,233.72,3.59909585]
[1759744601114,4.57,233.78,233.72,3.59909585]
[1759744607827,8.4183,233.78,233.72,3.59909585]
[1759744608029,4.57,233.78,233.72,3.59909585]
[1759744609729,8.4184,233.77,233.73,7.44]
[1759744610224,3.8484,233.77,233.73,7.44]
[1759744610424,3.8486,233.76,233.73,7.44]
[1759744610631,64.431,233.78,233.71,3.59909585]
[1759744610827,64.431,233.78,233.7,3.59909585]
[1759744611625,3.8489,233.74,233.7,3.59909585]
[1759744611830,108.9289,233.74,233.71,11.03909585]
[1759744612030,113.4989,233.74,233.71,11.03909585]
[1759744612226,113.4989,233.74,233.71,7.44]
[1759744615133,5.78795648,233.73,233.69,3.39510223]
[1759744615447,4.57,233.68,233.6,12.40397486]
[1759744615639,105.08,233.67,233.6,12.40397486]
[1759744615839,105.08,233.67,233.6,17.21137389]
[1759744616030,105.08,233.67,233.6,12.40397486]
[1759744616436,105.08,233.67,233.6,7.44]
[1759744616631,108.93,233.67,233.6,7.44]
[1759744617139,3.85,233.67,233.6,7.44]
[1759744617333,105.08,233.66,233.62,7.44]
[1759744617541,105.08,233.66,233.61,1.21795648]
[1759744617733,105.08,233.66,233.62,7.44]
[1759744617939,4.57,233.68,233.62,7.44]
[1759744618239,105.06,233.67,233.61,6.02535551]
[1759744618441,105.06,233.67,233.62,7.44]
[1759744618632,105.06,233.67,233.61,6.02535551]
[1759744619432,105.06,233.67,233.62,7.44]
[1759744619739,105.06,233.67,233.61,6.02535551]
[1759744620136,105.06,233.67,233.62,7.44]
[1759744620336,105.06,233.67,233.61,6.02535551]
[1759744620545,3.8492,233.72,233.65,7.44]
[1759744620742,96.19,233.73,233.69,7.44]
[1759744620937,4.57,233.72,233.69,7.44]
[1759744621131,8.4193,233.72,233.68,1.21795648]
[1759744621341,3.8493,233.72,233.68,1.21795648]
[1759744621634,8.4193,233.72,233.66,7.44]
[1759744621835,3.8493,233.72,233.67,1.21795648]
[1759744622041,4.57,233.71,233.67,1.21795648]
[1759744622443,3.8494,233.71,233.67,1.21795648]
[1759744622838,105.06,233.75,233.7,1.21795648]
[1759744623041,105.28,233.75,233.71,7.44]
[1759744623543,109.85,233.75,233.71,7.44]
[1759744623951,109.85,233.75,233.73,1.21795648]
[1759744624151,105.28,233.75,233.73,1.21795648]